[Event "Early-Titled-Tuesday-Blitz-April-16-2024"]
[Site "Chess.com"]
[Date "2024.04.16"]
[Round "2"]
[White "Iskusnyh"]
[Black "DonkyDonkyDonkey"]
[Result "0-1"]
[WhiteElo "2610"]
[BlackElo "2964"]
[TimeControl "180+1"]
[EndTime "8:17:55 PDT"]
[Termination "DonkyDonkyDonkey won on time"]

1. d4 {[%clk 0:02:04.8]} 1... Nf6 {[%clk 0:02:59.1]} 2. c4 {[%clk 0:02:04.3]}
2... e6 {[%clk 0:02:56.7]} 3. g3 {[%clk 0:02:04]} 3... d5 {[%clk 0:02:56.9]} 4.
Bg2 {[%clk 0:02:01.5]} 4... Be7 {[%clk 0:02:57.4]} 5. Nf3 {[%clk 0:02:01.2]}
5... O-O {[%clk 0:02:57.9]} 6. O-O {[%clk 0:02:01.1]} 6... a5 {[%clk 0:02:58.4]}
7. Qc2 {[%clk 0:01:47.5]} 7... c6 {[%clk 0:02:56.4]} 8. Rd1 {[%clk 0:01:43.3]}
8... b6 {[%clk 0:02:54.6]} 9. Nbd2 {[%clk 0:01:41.6]} 9... Ba6 {[%clk 0:02:53]}
10. e4 {[%clk 0:01:36.1]} 10... Nbd7 {[%clk 0:02:52.9]} 11. b3 {[%clk
0:01:26.3]} 11... b5 {[%clk 0:02:44.2]} 12. Bb2 {[%clk 0:01:19.6]} 12... bxc4
{[%clk 0:02:29]} 13. bxc4 {[%clk 0:01:20.5]} 13... dxe4 {[%clk 0:02:29.4]} 14.
Nxe4 {[%clk 0:01:18.3]} 14... Nxe4 {[%clk 0:02:28.5]} 15. Qxe4 {[%clk
0:01:19.2]} 15... Bxc4 {[%clk 0:02:24.5]} 16. Qxc6 {[%clk 0:01:11.6]} 16... Bd5
{[%clk 0:02:24.3]} 17. Qa4 {[%clk 0:01:10.1]} 17... Nb6 {[%clk 0:02:23.3]} 18.
Qc2 {[%clk 0:01:05.9]} 18... Rc8 {[%clk 0:02:22.9]} 19. Qe2 {[%clk 0:01:04.4]}
19... Qc7 {[%clk 0:02:12.8]} 20. Ne5 {[%clk 0:01:01.5]} 20... Bxg2 {[%clk
0:02:00.3]} 21. Kxg2 {[%clk 0:01:02.4]} 21... Nd5 {[%clk 0:02:00.9]} 22. Qf3
{[%clk 0:00:57.5]} 22... Qc2 {[%clk 0:01:52.3]} 23. Rab1 {[%clk 0:00:51.4]}
23... Bg5 {[%clk 0:01:43.2]} 24. h4 {[%clk 0:00:47.6]} 24... Ne3+ {[%clk
0:01:41]} 25. Kg1 {[%clk 0:00:38.9]} 25... Nxd1 {[%clk 0:01:41.4]} 26. Rxd1
{[%clk 0:00:35.5]} 26... Bh6 {[%clk 0:01:22.9]} 27. Ba3 {[%clk 0:00:32]} 27...
Rc3 {[%clk 0:01:17.8]} 28. Rd3 {[%clk 0:00:32.2]} 28... Rxd3 {[%clk 0:01:09.1]}
29. Nxd3 {[%clk 0:00:31.1]} 29... Rc8 {[%clk 0:01:06]} 30. Ne5 {[%clk
0:00:29.8]} 30... f6 {[%clk 0:01:03.2]} 31. Ng4 {[%clk 0:00:24.8]} 31... Bc1
{[%clk 0:01:02.1]} 32. Bc5 {[%clk 0:00:22.6]} 32... Qf5 {[%clk 0:00:47.5]} 33.
Qb7 {[%clk 0:00:19.6]} 33... e5 {[%clk 0:00:47.9]} 34. Qd5+ {[%clk 0:00:11.4]}
34... Kh8 {[%clk 0:00:47.8]} 35. Nh2 {[%clk 0:00:11.3]} 35... Bb2 {[%clk
0:00:36.1]} 36. Nf3 {[%clk 0:00:11]} 36... Bxd4 {[%clk 0:00:34.4]} 37. Nxd4
{[%clk 0:00:09.6]} 37... Qb1+ {[%clk 0:00:35]} 38. Kg2 {[%clk 0:00:09.1]} 38...
exd4 {[%clk 0:00:35.8]} 39. Bxd4 {[%clk 0:00:08.9]} 39... Re8 {[%clk 0:00:35.3]}
40. Kh2 {[%clk 0:00:06.9]} 40... Qe4 {[%clk 0:00:34.6]} 41. Qd7 {[%clk
0:00:06.8]} 41... Qe7 {[%clk 0:00:33.8]} 42. Qb5 {[%clk 0:00:05.7]} 42... Qe4
{[%clk 0:00:32]} 43. Be3 {[%clk 0:00:04.3]} 43... Qe5 {[%clk 0:00:29.8]} 44. Qc6
{[%clk 0:00:03.9]} 44... h6 {[%clk 0:00:29.1]} 45. a4 {[%clk 0:00:03.3]} 45...
Qe4 {[%clk 0:00:27.1]} 46. Qb5 {[%clk 0:00:03.3]} 46... Re5 {[%clk 0:00:27.8]}
47. Qb8+ {[%clk 0:00:02.9]} 47... Kh7 {[%clk 0:00:28.5]} 48. Qc7 {[%clk
0:00:02.7]} 48... Rd5 {[%clk 0:00:26.8]} 49. Qb7 {[%clk 0:00:02.1]} 49... Rd4
{[%clk 0:00:22]} 50. Qb5 {[%clk 0:00:01.5]} 50... Rd1 {[%clk 0:00:20.2]} 0-1

[Event "Early-Titled-Tuesday-Blitz-April-16-2024"]
[Site "Chess.com"]
[Date "2024.04.16"]
[Round "2"]
[White "GMAneta"]
[Black "KnightDuta"]
[Result "1-0"]
[WhiteElo "2549"]
[BlackElo "2741"]
[TimeControl "180+1"]
[EndTime "8:17:56 PDT"]
[Termination "GMAneta won by checkmate"]

1. d4 {[%clk 0:03:00]} 1... Nf6 {[%clk 0:01:13.7]} 2. Nf3 {[%clk 0:03:00.9]}
2... g6 {[%clk 0:01:14]} 3. c4 {[%clk 0:03:00.7]} 3... Bg7 {[%clk 0:01:14]} 4.
g3 {[%clk 0:03:01.3]} 4... O-O {[%clk 0:01:13.4]} 5. Bg2 {[%clk 0:03:02.2]} 5...
c6 {[%clk 0:01:14.1]} 6. O-O {[%clk 0:03:01.7]} 6... d5 {[%clk 0:01:15]} 7. cxd5
{[%clk 0:03:02]} 7... cxd5 {[%clk 0:01:15.9]} 8. Ne5 {[%clk 0:03:02.3]} 8... Nc6
{[%clk 0:01:15.2]} 9. Nxc6 {[%clk 0:03:01.6]} 9... bxc6 {[%clk 0:01:16.1]} 10.
Nc3 {[%clk 0:03:02.4]} 10... Bf5 {[%clk 0:01:16.6]} 11. Bf4 {[%clk 0:03:01.3]}
11... Ne4 {[%clk 0:01:17.1]} 12. Na4 {[%clk 0:02:49.7]} 12... Qa5 {[%clk
0:00:54.4]} 13. Rc1 {[%clk 0:02:43.4]} 13... Qb4 {[%clk 0:00:43.7]} 14. Be3
{[%clk 0:02:31.4]} 14... Rab8 {[%clk 0:00:43.2]} 15. a3 {[%clk 0:02:28]} 15...
Qb3 {[%clk 0:00:41.2]} 16. Qxb3 {[%clk 0:02:19.3]} 16... Rxb3 {[%clk 0:00:42.1]}
17. Rxc6 {[%clk 0:02:18.3]} 17... Bd7 {[%clk 0:00:41.6]} 18. Ra6 {[%clk
0:02:18.3]} 18... Bxa4 {[%clk 0:00:16.2]} 19. Rxa4 {[%clk 0:02:19.2]} 19... Rxb2
{[%clk 0:00:16.8]} 20. Rxa7 {[%clk 0:02:15.8]} 20... e6 {[%clk 0:00:17.5]} 21.
Bf3 {[%clk 0:02:10]} 21... Rc8 {[%clk 0:00:17.3]} 22. a4 {[%clk 0:02:08.3]}
22... Ra2 {[%clk 0:00:17.1]} 23. Bxe4 {[%clk 0:02:04.6]} 23... dxe4 {[%clk
0:00:17.3]} 24. Rb1 {[%clk 0:02:04.6]} 24... Rxe2 {[%clk 0:00:14.4]} 25. Rbb7
{[%clk 0:02:04.2]} 25... Rf8 {[%clk 0:00:13.4]} 26. a5 {[%clk 0:02:04]} 26...
Ra2 {[%clk 0:00:09]} 27. a6 {[%clk 0:02:03.7]} 27... h5 {[%clk 0:00:07.1]} 28.
h4 {[%clk 0:02:02.7]} 28... Ra3 {[%clk 0:00:03.8]} 29. Rd7 {[%clk 0:02:01.6]}
29... Ra5 {[%clk 0:00:04.2]} 30. Bf4 {[%clk 0:02:00.7]} 30... Ra4 {[%clk
0:00:01.7]} 31. Bd6 {[%clk 0:01:57.3]} 31... Ra1+ {[%clk 0:00:01.4]} 32. Kg2
{[%clk 0:01:57.2]} 32... Ra2 {[%clk 0:00:01.5]} 33. Bxf8 {[%clk 0:01:56.9]}
33... Bxf8 {[%clk 0:00:02.4]} 34. Rxf7 {[%clk 0:01:56.8]} 34... e3 {[%clk
0:00:03.2]} 35. Rf3 {[%clk 0:01:55.2]} 35... e2 {[%clk 0:00:03.2]} 36. Re3
{[%clk 0:01:55.3]} 36... Bb4 {[%clk 0:00:03.7]} 37. Rb7 {[%clk 0:01:51.5]} 37...
e1=Q {[%clk 0:00:03.5]} 38. Rxe1 {[%clk 0:01:51.7]} 38... Bxe1 {[%clk
0:00:04.4]} 39. a7 {[%clk 0:01:52.3]} 39... Rxf2+ {[%clk 0:00:05.1]} 40. Kg1
{[%clk 0:01:52.1]} 40... Ra2 {[%clk 0:00:05.2]} 41. Rb8+ {[%clk 0:01:51.8]}
41... Kg7 {[%clk 0:00:05.8]} 42. a8=Q {[%clk 0:01:51.4]} 42... Bf2+ {[%clk
0:00:06.5]} 43. Kf1 {[%clk 0:01:50.9]} 43... Rxa8 {[%clk 0:00:07.4]} 44. Rxa8
{[%clk 0:01:50.4]} 44... Bxg3 {[%clk 0:00:08.1]} 45. Ra6 {[%clk 0:01:45.8]}
45... Kf6 {[%clk 0:00:08.1]} 46. d5 {[%clk 0:01:45.8]} 46... Bxh4 {[%clk
0:00:07.9]} 47. Rxe6+ {[%clk 0:01:45.3]} 47... Kf5 {[%clk 0:00:08.2]} 48. Ke2
{[%clk 0:01:44.7]} 48... Bg3 {[%clk 0:00:08.4]} 49. Kf3 {[%clk 0:01:43.8]} 49...
Bh2 {[%clk 0:00:08.1]} 50. Kg2 {[%clk 0:01:42.1]} 50... Bf4 {[%clk 0:00:08.3]}
51. Re8 {[%clk 0:01:39.1]} 51... g5 {[%clk 0:00:08.2]} 52. Kf2 {[%clk
0:01:33.9]} 52... g4 {[%clk 0:00:08.2]} 53. Rh8 {[%clk 0:01:33.8]} 53... Kg5
{[%clk 0:00:07.4]} 54. Rf8 {[%clk 0:01:31.6]} 54... Be5 {[%clk 0:00:06.4]} 55.
Ke3 {[%clk 0:01:29.1]} 55... h4 {[%clk 0:00:05.4]} 56. Ke4 {[%clk 0:01:28.9]}
56... Bc7 {[%clk 0:00:04.6]} 57. Rg8+ {[%clk 0:01:28.9]} 57... Kh5 {[%clk
0:00:04.6]} 58. Kf5 {[%clk 0:01:28.2]} 58... Kh6 {[%clk 0:00:01.5]} 59. Rxg4
{[%clk 0:01:25.5]} 59... Bg3 {[%clk 0:00:01.9]} 60. Rg8 {[%clk 0:01:23.3]} 60...
Bd6 {[%clk 0:00:01.4]} 61. Rg6+ {[%clk 0:01:22.6]} 61... Kh5 {[%clk 0:00:02]}
62. Rxd6 {[%clk 0:01:22.3]} 62... h3 {[%clk 0:00:02.9]} 63. Re6 {[%clk 0:01:22]}
63... h2 {[%clk 0:00:02.9]} 64. Re1 {[%clk 0:01:22]} 64... Kh4 {[%clk
0:00:03.8]} 65. d6 {[%clk 0:01:21.8]} 65... Kg3 {[%clk 0:00:04.7]} 66. d7 {[%clk
0:01:21.5]} 66... Kf2 {[%clk 0:00:05.6]} 67. Rh1 {[%clk 0:01:21.5]} 67... Kg2
{[%clk 0:00:06.2]} 68. Rxh2+ {[%clk 0:01:17.7]} 68... Kxh2 {[%clk 0:00:07.1]}
69. d8=Q {[%clk 0:01:17.7]} 69... Kg3 {[%clk 0:00:08]} 70. Qd3+ {[%clk
0:01:17.3]} 70... Kh4 {[%clk 0:00:07.3]} 71. Kf4 {[%clk 0:01:15]} 71... Kh5
{[%clk 0:00:08.2]} 72. Qh7# {[%clk 0:01:13.9]} 1-0

[Event "Early-Titled-Tuesday-Blitz-April-16-2024"]
[Site "Chess.com"]
[Date "2024.04.16"]
[Round "2"]
[White "DonJuanEGenaro"]
[Black "ChessSG1"]
[Result "0-1"]
[WhiteElo "1994"]
[BlackElo "2435"]
[TimeControl "180+1"]
[EndTime "8:17:56 PDT"]
[Termination "ChessSG1 won on time"]

1. d4 {[%clk 0:03:00.9]} 1... Nf6 {[%clk 0:02:59.3]} 2. Nf3 {[%clk 0:03:00.7]}
2... c5 {[%clk 0:02:57.4]} 3. c3 {[%clk 0:03:00]} 3... g6 {[%clk 0:02:47.8]} 4.
dxc5 {[%clk 0:02:48.4]} 4... a5 {[%clk 0:02:47.8]} 5. Na3 {[%clk 0:02:43.7]}
5... Na6 {[%clk 0:02:33]} 6. Bf4 {[%clk 0:02:19.3]} 6... Nxc5 {[%clk 0:02:32.3]}
7. e3 {[%clk 0:02:19.4]} 7... d6 {[%clk 0:02:32.1]} 8. Bc4 {[%clk 0:02:12.5]}
8... Bg7 {[%clk 0:02:31.5]} 9. h3 {[%clk 0:02:10.6]} 9... O-O {[%clk 0:02:31.3]}
10. O-O {[%clk 0:02:10.2]} 10... Nfe4 {[%clk 0:02:22.4]} 11. Nd2 {[%clk
0:02:01.1]} 11... e5 {[%clk 0:02:17]} 12. Nxe4 {[%clk 0:01:56.7]} 12... Nxe4
{[%clk 0:02:14.6]} 13. Bh2 {[%clk 0:01:56]} 13... Be6 {[%clk 0:01:57.5]} 14.
Bxe6 {[%clk 0:01:51.3]} 14... fxe6 {[%clk 0:01:56.8]} 15. f3 {[%clk 0:01:32.8]}
15... Nf6 {[%clk 0:01:51.6]} 16. Nc4 {[%clk 0:01:28.7]} 16... Ra6 {[%clk
0:01:43]} 17. a4 {[%clk 0:01:21.1]} 17... Rc6 {[%clk 0:01:42.3]} 18. Qb3 {[%clk
0:01:14.3]} 18... Nd5 {[%clk 0:01:40.3]} 19. Rad1 {[%clk 0:01:06.6]} 19... Kh8
{[%clk 0:01:36.6]} 20. Rfe1 {[%clk 0:01:02.3]} 20... Qc7 {[%clk 0:01:32.1]} 21.
Nd2 {[%clk 0:00:51.1]} 21... Bh6 {[%clk 0:01:32.6]} 22. Ne4 {[%clk 0:00:44.1]}
22... Nxe3 {[%clk 0:01:23.4]} 23. Rxd6 {[%clk 0:00:41.7]} 23... Nc4 {[%clk
0:00:59.8]} 24. Rxc6 {[%clk 0:00:31.6]} 24... Qxc6 {[%clk 0:01:00.7]} 25. Rd1
{[%clk 0:00:28.3]} 25... Bf4 {[%clk 0:00:55.3]} 26. Bxf4 {[%clk 0:00:25.7]}
26... exf4 {[%clk 0:00:56.2]} 27. Qb5 {[%clk 0:00:24.3]} 27... Qxb5 {[%clk
0:00:51.6]} 28. axb5 {[%clk 0:00:24.2]} 28... Nxb2 {[%clk 0:00:51.8]} 29. Rd7
{[%clk 0:00:24]} 29... b6 {[%clk 0:00:45.1]} 30. Ng5 {[%clk 0:00:21.2]} 30... a4
{[%clk 0:00:31.1]} 31. Rxh7+ {[%clk 0:00:19.8]} 31... Kg8 {[%clk 0:00:31.6]} 32.
Ra7 {[%clk 0:00:18]} 32... Rc8 {[%clk 0:00:25.9]} 33. Ne4 {[%clk 0:00:18.1]}
33... Kf8 {[%clk 0:00:16.3]} 34. Nf6 {[%clk 0:00:17.7]} 34... Rxc3 {[%clk
0:00:16.2]} 35. Nh7+ {[%clk 0:00:17.3]} 35... Ke8 {[%clk 0:00:16.5]} 36. Nf6+
{[%clk 0:00:17.3]} 36... Kd8 {[%clk 0:00:16.8]} 37. Ne4 {[%clk 0:00:15.5]} 37...
Rc1+ {[%clk 0:00:16.5]} 38. Kh2 {[%clk 0:00:12.7]} 38... Ra1 {[%clk 0:00:14]}
39. Nd6 {[%clk 0:00:12]} 39... a3 {[%clk 0:00:14.2]} 40. h4 {[%clk 0:00:07.6]}
40... a2 {[%clk 0:00:08.4]} 41. Ne4 {[%clk 0:00:07]} 41... Nd3 {[%clk
0:00:05.9]} 42. Nc3 {[%clk 0:00:06.4]} 42... Nb4 {[%clk 0:00:06.5]} 43. Ra4
{[%clk 0:00:03.3]} 43... Rc1 {[%clk 0:00:05.7]} 44. Nxa2 {[%clk 0:00:02.6]}
44... Nd3 {[%clk 0:00:05.3]} 45. Nc3 {[%clk 0:00:01.5]} 45... Rxc3 {[%clk
0:00:04.3]} 46. Rd4+ {[%clk 0:00:01.3]} 46... Ke7 {[%clk 0:00:04]} 0-1

[Event "Early-Titled-Tuesday-Blitz-April-16-2024"]
[Site "Chess.com"]
[Date "2024.04.16"]
[Round "2"]
[White "Tugrik1969"]
[Black "levallem"]
[Result "0-1"]
[WhiteElo "2519"]
[BlackElo "2339"]
[TimeControl "180+1"]
[EndTime "8:17:57 PDT"]
[Termination "levallem won by checkmate"]

1. d4 {[%clk 0:03:00.9]} 1... d5 {[%clk 0:02:59]} 2. c4 {[%clk 0:03:00.9]} 2...
e6 {[%clk 0:02:58.2]} 3. Nf3 {[%clk 0:03:01.1]} 3... Nf6 {[%clk 0:02:57.3]} 4.
g3 {[%clk 0:03:01.6]} 4... Be7 {[%clk 0:02:55.9]} 5. Bg2 {[%clk 0:03:02.1]} 5...
O-O {[%clk 0:02:56.5]} 6. O-O {[%clk 0:03:02]} 6... c6 {[%clk 0:02:50.7]} 7. Nc3
{[%clk 0:03:01.3]} 7... Nbd7 {[%clk 0:02:49.2]} 8. Qd3 {[%clk 0:03:00.8]} 8...
a6 {[%clk 0:02:47.6]} 9. e4 {[%clk 0:02:54.4]} 9... dxe4 {[%clk 0:02:46.4]} 10.
Nxe4 {[%clk 0:02:55.2]} 10... Nxe4 {[%clk 0:02:47]} 11. Qxe4 {[%clk 0:02:55.7]}
11... Nf6 {[%clk 0:02:47.5]} 12. Qe2 {[%clk 0:02:55.8]} 12... Re8 {[%clk
0:02:45.7]} 13. Rd1 {[%clk 0:02:55.3]} 13... b5 {[%clk 0:02:44]} 14. Ne5 {[%clk
0:02:50.3]} 14... Bb7 {[%clk 0:02:38.5]} 15. Nxc6 {[%clk 0:02:21.9]} 15... Qc7
{[%clk 0:02:31.5]} 16. Nxe7+ {[%clk 0:02:18.2]} 16... Rxe7 {[%clk 0:02:24.1]}
17. Bf4 {[%clk 0:02:14.4]} 17... Qxc4 {[%clk 0:02:20.2]} 18. Qxc4 {[%clk
0:01:55.6]} 18... bxc4 {[%clk 0:02:21.1]} 19. Rac1 {[%clk 0:01:48.7]} 19... Bxg2
{[%clk 0:02:05.3]} 20. Kxg2 {[%clk 0:01:49.6]} 20... Rc8 {[%clk 0:02:04.6]} 21.
Bg5 {[%clk 0:01:33.7]} 21... Rec7 {[%clk 0:01:45.4]} 22. Bxf6 {[%clk 0:01:32.2]}
22... gxf6 {[%clk 0:01:45.4]} 23. Rc3 {[%clk 0:01:31.2]} 23... Kf8 {[%clk
0:01:42.8]} 24. d5 {[%clk 0:01:24.1]} 24... Rd8 {[%clk 0:01:30.5]} 25. d6 {[%clk
0:01:22.7]} 25... Rc6 {[%clk 0:01:28.4]} 26. b3 {[%clk 0:01:12.4]} 26... Rdxd6
{[%clk 0:01:23.6]} 27. Rxd6 {[%clk 0:01:12.2]} 27... Rxd6 {[%clk 0:01:23.9]} 28.
Rxc4 {[%clk 0:01:12.7]} 28... f5 {[%clk 0:01:20.5]} 29. Kf3 {[%clk 0:01:10.3]}
29... Ke7 {[%clk 0:01:19.8]} 30. Ke3 {[%clk 0:01:07.8]} 30... Kf6 {[%clk
0:01:19.8]} 31. Rc5 {[%clk 0:00:57.8]} 31... h5 {[%clk 0:01:18.9]} 32. h4 {[%clk
0:00:57.2]} 32... Kg6 {[%clk 0:01:13.4]} 33. b4 {[%clk 0:00:55.4]} 33... f6
{[%clk 0:01:13.3]} 34. a4 {[%clk 0:00:54.4]} 34... e5 {[%clk 0:01:13.1]} 35. b5
{[%clk 0:00:53.4]} 35... Rd4 {[%clk 0:01:02.2]} 36. bxa6 {[%clk 0:00:40]} 36...
Rxa4 {[%clk 0:01:02.1]} 37. Rc6 {[%clk 0:00:40.5]} 37... f4+ {[%clk 0:00:55]}
38. gxf4 {[%clk 0:00:37.4]} 38... Rxf4 {[%clk 0:00:55.6]} 39. a7 {[%clk
0:00:37.2]} 39... Ra4 {[%clk 0:00:55.2]} 40. Rc7 {[%clk 0:00:38.1]} 40... Kf5
{[%clk 0:00:55]} 41. f3 {[%clk 0:00:36.2]} 41... Ra3+ {[%clk 0:00:54.1]} 42. Ke2
{[%clk 0:00:35.4]} 42... Kf4 {[%clk 0:00:53.4]} 43. Rf7 {[%clk 0:00:30.5]} 43...
f5 {[%clk 0:00:52.1]} 44. Re7 {[%clk 0:00:21.4]} 44... Ra5 {[%clk 0:00:47.9]}
45. Rf7 {[%clk 0:00:20.4]} 45... Ra3 {[%clk 0:00:42.7]} 46. Re7 {[%clk
0:00:19.7]} 46... Ra5 {[%clk 0:00:42.6]} 47. Rf7 {[%clk 0:00:19.5]} 47... e4
{[%clk 0:00:42.7]} 48. fxe4 {[%clk 0:00:18.9]} 48... Kxe4 {[%clk 0:00:42.5]} 49.
Rh7 {[%clk 0:00:17.6]} 49... Kf4 {[%clk 0:00:40.1]} 50. Rxh5 {[%clk 0:00:16.3]}
50... Rxa7 {[%clk 0:00:38.5]} 51. Rh8 {[%clk 0:00:14.6]} 51... Ra2+ {[%clk
0:00:38.4]} 52. Kf1 {[%clk 0:00:13.3]} 52... Kf3 {[%clk 0:00:38.7]} 53. Kg1
{[%clk 0:00:13.2]} 53... f4 {[%clk 0:00:39.1]} 54. Rb8 {[%clk 0:00:12]} 54...
Kg3 {[%clk 0:00:32.8]} 55. Rb3+ {[%clk 0:00:09.9]} 55... f3 {[%clk 0:00:29.9]}
56. Rb1 {[%clk 0:00:08.1]} 56... Rg2+ {[%clk 0:00:29.7]} 57. Kf1 {[%clk
0:00:06.8]} 57... Rh2 {[%clk 0:00:30.3]} 58. Rb3 {[%clk 0:00:02]} 58... Rh1#
{[%clk 0:00:29.8]} 0-1

[Event "Early-Titled-Tuesday-Blitz-April-16-2024"]
[Site "Chess.com"]
[Date "2024.04.16"]
[Round "2"]
[White "GreenPeach24"]
[Black "chezzgirl04"]
[Result "1-0"]
[WhiteElo "2452"]
[BlackElo "2127"]
[TimeControl "180+1"]
[EndTime "8:17:58 PDT"]
[Termination "GreenPeach24 won on time"]

1. e4 {[%clk 0:03:00.9]} 1... e5 {[%clk 0:02:59.4]} 2. Nf3 {[%clk 0:03:00.6]}
2... Nc6 {[%clk 0:02:59.5]} 3. Bc4 {[%clk 0:03:00.2]} 3... Bc5 {[%clk
0:02:59.4]} 4. c3 {[%clk 0:03:00.1]} 4... d6 {[%clk 0:02:57.2]} 5. d4 {[%clk
0:02:50.1]} 5... Bb6 {[%clk 0:02:57.2]} 6. O-O {[%clk 0:02:40.3]} 6... Nge7
{[%clk 0:02:53.9]} 7. Ng5 {[%clk 0:02:34.5]} 7... d5 {[%clk 0:02:30.1]} 8. exd5
{[%clk 0:02:12.6]} 8... Na5 {[%clk 0:02:24.1]} 9. Bb5+ {[%clk 0:02:03.4]} 9...
c6 {[%clk 0:02:23.5]} 10. dxc6 {[%clk 0:02:02.4]} 10... bxc6 {[%clk 0:02:23.6]}
11. Qf3 {[%clk 0:01:52.4]} 11... O-O {[%clk 0:02:13.2]} 12. Bd3 {[%clk
0:01:49.5]} 12... Ng6 {[%clk 0:02:07.3]} 13. dxe5 {[%clk 0:01:41.2]} 13... Be6
{[%clk 0:01:24.1]} 14. Qh5 {[%clk 0:01:18.4]} 14... h6 {[%clk 0:01:17.8]} 15.
Nxe6 {[%clk 0:01:14.2]} 15... Qxd3 {[%clk 0:01:17.6]} 16. Nxf8 {[%clk
0:01:12.8]} 16... Rxf8 {[%clk 0:01:17.4]} 17. Nd2 {[%clk 0:00:57.4]} 17... Nf4
{[%clk 0:01:13.5]} 18. Qd1 {[%clk 0:00:33.5]} 18... Rd8 {[%clk 0:00:58.2]} 19.
Kh1 {[%clk 0:00:15.4]} 19... Nc4 {[%clk 0:00:54.7]} 20. g3 {[%clk 0:00:06.9]}
20... Ne2 {[%clk 0:00:49.7]} 21. Re1 {[%clk 0:00:05.8]} 21... Nxc1 {[%clk
0:00:47.7]} 22. Rxc1 {[%clk 0:00:03.8]} 22... Nxd2 {[%clk 0:00:46.8]} 23. Kg2
{[%clk 0:00:03.4]} 23... Qd5+ {[%clk 0:00:45.6]} 24. f3 {[%clk 0:00:03.8]} 24...
Qb5 {[%clk 0:00:35.2]} 25. b3 {[%clk 0:00:04.1]} 25... Qc5 {[%clk 0:00:31.3]}
26. Qe2 {[%clk 0:00:04.3]} 26... Qa3 {[%clk 0:00:11.6]} 27. Red1 {[%clk
0:00:04.3]} 27... Qxa2 {[%clk 0:00:10.9]} 28. Kh3 {[%clk 0:00:03.1]} 28... c5
{[%clk 0:00:08.5]} 29. f4 {[%clk 0:00:03.5]} 29... Qb2 {[%clk 0:00:05.9]} 30.
Ra1 {[%clk 0:00:02.9]} 30... a5 {[%clk 0:00:05.7]} 31. g4 {[%clk 0:00:03.2]}
31... h5 {[%clk 0:00:05.6]} 32. Kh4 {[%clk 0:00:03.6]} 32... Rd7 {[%clk
0:00:04.5]} 33. g5 {[%clk 0:00:03.7]} 33... Qxc3 {[%clk 0:00:03.9]} 34. Rg1
{[%clk 0:00:04.3]} 34... Ne4 {[%clk 0:00:03.6]} 35. Qxe4 {[%clk 0:00:04]} 35...
Rd2 {[%clk 0:00:03.4]} 36. Kxh5 {[%clk 0:00:03.8]} 36... Rxh2+ {[%clk
0:00:03.4]} 37. Kg4 {[%clk 0:00:03.8]} 37... Qd2 {[%clk 0:00:02.8]} 38. Qf3
{[%clk 0:00:03.2]} 38... Qc2 {[%clk 0:00:02.1]} 39. Rh1 {[%clk 0:00:03.7]} 39...
Rg2+ {[%clk 0:00:02]} 40. Kh4 {[%clk 0:00:03.3]} 40... Qh7+ {[%clk 0:00:02]} 41.
Qh5 {[%clk 0:00:03.8]} 41... Rg4+ {[%clk 0:00:01.4]} 42. Kxg4 {[%clk 0:00:03.8]}
42... f5+ {[%clk 0:00:01.3]} 43. Kh4 {[%clk 0:00:03.8]} 1-0

[Event "Early-Titled-Tuesday-Blitz-April-16-2024"]
[Site "Chess.com"]
[Date "2024.04.16"]
[Round "2"]
[White "Alen_Yeremyann"]
[Black "Predator0608"]
[Result "1-0"]
[WhiteElo "2822"]
[BlackElo "2564"]
[TimeControl "180+1"]
[EndTime "8:18:00 PDT"]
[Termination "Alen_Yeremyann won by resignation"]

1. e4 {[%clk 0:02:59.6]} 1... c5 {[%clk 0:03:00.6]} 2. Nc3 {[%clk 0:02:59.5]}
2... Nc6 {[%clk 0:03:00]} 3. Bb5 {[%clk 0:02:59.3]} 3... Nd4 {[%clk 0:02:59.8]}
4. Bc4 {[%clk 0:03:00]} 4... e6 {[%clk 0:02:59.7]} 5. Nge2 {[%clk 0:03:00.5]}
5... a6 {[%clk 0:02:59.7]} 6. a4 {[%clk 0:02:59.2]} 6... Nf6 {[%clk 0:02:54.8]}
7. O-O {[%clk 0:02:57.7]} 7... d5 {[%clk 0:02:32.9]} 8. exd5 {[%clk 0:02:55.9]}
8... exd5 {[%clk 0:02:33.8]} 9. Nxd5 {[%clk 0:02:56.6]} 9... Nxd5 {[%clk
0:02:29.1]} 10. Nxd4 {[%clk 0:02:51.8]} 10... cxd4 {[%clk 0:02:29.4]} 11. Qh5
{[%clk 0:02:51.6]} 11... Be6 {[%clk 0:01:07.5]} 12. Re1 {[%clk 0:02:50.9]} 12...
Nf4 {[%clk 0:01:04.4]} 13. Qf3 {[%clk 0:02:15.7]} 13... Bd6 {[%clk 0:00:59.3]}
14. d3 {[%clk 0:02:11.9]} 14... Qf6 {[%clk 0:00:48.9]} 15. Bxf4 {[%clk
0:01:34.2]} 15... Qxf4 {[%clk 0:00:49.8]} 16. Qxf4 {[%clk 0:01:33.6]} 16... Bxf4
{[%clk 0:00:50.7]} 17. Bxe6 {[%clk 0:01:34]} 17... fxe6 {[%clk 0:00:51]} 18.
Rxe6+ {[%clk 0:01:34.9]} 18... Kd7 {[%clk 0:00:44.3]} 19. Re4 {[%clk 0:01:35.8]}
19... Bd6 {[%clk 0:00:40.7]} 20. Rxd4 {[%clk 0:01:35.9]} 20... Rhe8 {[%clk
0:00:40.9]} 21. Kf1 {[%clk 0:01:34.9]} 21... Re6 {[%clk 0:00:31.1]} 22. Re1
{[%clk 0:01:31]} 22... Rae8 {[%clk 0:00:30.8]} 23. Rxe6 {[%clk 0:01:30.8]} 23...
Rxe6 {[%clk 0:00:31.7]} 24. c3 {[%clk 0:01:31.4]} 24... Kc6 {[%clk 0:00:31.3]}
25. Rh4 {[%clk 0:01:31.3]} 25... h6 {[%clk 0:00:31.3]} 26. Rg4 {[%clk 0:01:32]}
26... Be5 {[%clk 0:00:31.2]} 27. Rc4+ {[%clk 0:01:28.8]} 27... Kd5 {[%clk
0:00:29.8]} 28. Rc8 {[%clk 0:01:26.4]} 28... Bf6 {[%clk 0:00:29.5]} 29. Rc7
{[%clk 0:01:18.9]} 29... Rb6 {[%clk 0:00:29.5]} 30. b4 {[%clk 0:01:16.2]} 30...
Be5 {[%clk 0:00:29.5]} 31. Rc5+ {[%clk 0:01:12.6]} 31... Kd6 {[%clk 0:00:29.1]}
32. d4 {[%clk 0:01:12.6]} 32... Bf6 {[%clk 0:00:29.1]} 33. Ke2 {[%clk
0:01:09.2]} 33... Rc6 {[%clk 0:00:29.2]} 34. Rxc6+ {[%clk 0:01:09.4]} 34... bxc6
{[%clk 0:00:26.4]} 35. Kd3 {[%clk 0:01:08.7]} 35... Kd5 {[%clk 0:00:24.1]} 36.
c4+ {[%clk 0:01:08.7]} 36... Ke6 {[%clk 0:00:24.4]} 37. Ke4 {[%clk 0:01:04.7]}
37... Be7 {[%clk 0:00:24.7]} 38. b5 {[%clk 0:00:52.2]} 38... axb5 {[%clk
0:00:25.6]} 39. axb5 {[%clk 0:00:51.8]} 39... cxb5 {[%clk 0:00:24.4]} 40. cxb5
{[%clk 0:00:52]} 40... Bd8 {[%clk 0:00:22.9]} 41. g4 {[%clk 0:00:49.3]} 41... g5
{[%clk 0:00:20.7]} 42. h3 {[%clk 0:00:41.8]} 42... Bb6 {[%clk 0:00:20.5]} 43.
d5+ {[%clk 0:00:32]} 43... Kf6 {[%clk 0:00:20.6]} 44. f4 {[%clk 0:00:26.1]}
44... Bc5 {[%clk 0:00:20.7]} 45. d6 {[%clk 0:00:14.4]} 45... Bxd6 {[%clk
0:00:20.7]} 46. f5 {[%clk 0:00:15.1]} 46... Be5 {[%clk 0:00:17.1]} 47. Kd5
{[%clk 0:00:15.6]} 47... Bf4 {[%clk 0:00:14]} 48. Kc6 {[%clk 0:00:16.1]} 48...
Ke7 {[%clk 0:00:14.3]} 49. b6 {[%clk 0:00:14.7]} 49... Be5 {[%clk 0:00:13.1]}
50. Kb7 {[%clk 0:00:13.7]} 50... Kd7 {[%clk 0:00:13.1]} 51. Ka8 {[%clk
0:00:14.1]} 51... Kc6 {[%clk 0:00:02.3]} 52. b7 {[%clk 0:00:14.7]} 1-0